lending/lending_fUSD_20250303
["ID","MTS","AMOUNT","RATE_DAILY","PERIOD"]
[355216887,1741019445298,-500.0,0.00014784,2]
[355216888,1741019445307,-265.22572145,0.00014784,2]
[355216889,1741019445317,-500.0,0.00014784,2]
[355216890,1741019445326,-1985.39,0.00014784,2]
[355216891,1741019445336,-500.0,0.00014784,2]
[355216892,1741019445345,-680.98,0.00014784,2]
[355216893,1741019445356,-1269.08,0.00014784,2]
[355216894,1741019445365,-896.11,0.00014784,2]
[355216895,1741019445375,-165.60374786,0.00014784,2]
[355216896,1741019445385,-554.53,0.00014785,2]
[355216897,1741019445395,-500.0,0.00014785,2]
[355216898,1741019445406,-522.2,0.00014785,2]
[355216900,1741019445415,-500.0,0.00014785,2]
[355216903,1741019445425,-608.40233636,0.00014785,2]
[355216906,1741019445435,-500.0,0.00014785,2]
[355216909,1741019445444,-500.0,0.00014785,2]
[355216911,1741019445453,-503.23574544,0.00014785,2]
[355216913,1741019445462,-500.0,0.00014785,2]
[355216915,1741019445472,-500.0,0.00014785,2]
[355216918,1741019445482,-500.0,0.00014785,2]
[355216921,1741019445492,-500.0,0.00014785,2]
[355216923,1741019445502,-501.30932421,0.00014785,2]
[355216925,1741019445511,-604.95,0.00014785,2]
[355216927,1741019445520,-500.0,0.00014785,2]
[355216929,1741019445530,-500.0,0.00014785,2]
[355216931,1741019445540,-500.0,0.00014785,2]
[355216933,1741019445550,-500.0,0.00014785,2]
[355216935,1741019445559,-584.64,0.00014785,2]
[355216936,1741019445568,-500.0,0.00014785,2]
[355216937,1741019445578,-500.0,0.00014785,2]
[355216938,1741019445587,-500.0,0.00014785,2]
[355216939,1741019445597,-500.0,0.00014785,2]
[355216940,1741019445606,-500.0,0.00014785,2]
[355216941,1741019445615,-500.0,0.00014785,2]
[355216942,1741019445625,-500.0,0.00014785,2]
[355216943,1741019445634,-500.0,0.00014785,2]
[355216944,1741019445645,-500.0,0.00014785,2]
[355216945,1741019445656,-500.0,0.00014785,2]
[355216946,1741019445666,-500.0,0.00014785,2]
[355216947,1741019445676,-500.0,0.00014785,2]
[355216948,1741019445686,-500.0,0.00014785,2]
[355216949,1741019445696,-500.0,0.00014785,2]
[355216950,1741019445705,-500.0,0.00014785,2]
[355216951,1741019445715,-500.0,0.00014785,2]
[355216952,1741019445726,-696.89,0.00014785,2]
[355216953,1741019445736,-500.0,0.00014785,2]
[355216954,1741019445746,-500.0,0.00014785,2]
[355216955,1741019445755,-500.0,0.00014785,2]
[355216956,1741019445764,-500.0,0.00014785,2]
[355216957,1741019445775,-500.0,0.00014785,2]
[355216958,1741019445785,-500.0,0.00014785,2]
[355216959,1741019445794,-500.0,0.00014785,2]
[355216960,1741019445806,-701.13,0.00014785,2]
[355216961,1741019445816,-500.0,0.00014785,2]
[355216962,1741019445826,-500.0,0.00014785,2]
[355216963,1741019445835,-500.0,0.00014785,2]
[355216964,1741019445844,-500.0,0.00014785,2]
[355216965,1741019445854,-500.0,0.00014785,2]
[355216966,1741019445863,-589.34,0.00014785,2]
[355216967,1741019445873,-500.0,0.00014785,2]
[355216968,1741019445883,-500.0,0.00014785,2]
[355216969,1741019445892,-500.0,0.00014785,2]
[355216970,1741019445902,-500.0,0.00014785,2]
[355216971,1741019445912,-500.0,0.00014785,2]
[355216972,1741019445922,-500.0,0.00014785,2]
[355216973,1741019445931,-500.0,0.00014785,2]
[355216974,1741019445941,-500.0,0.00014785,2]
[355216975,1741019445950,-500.0,0.00014785,2]
[355216976,1741019445960,-500.0,0.00014785,2]
[355216977,1741019445970,-500.0,0.00014785,2]
[355216978,1741019445980,-500.0,0.00014785,2]
[355216979,1741019445990,-500.0,0.00014785,2]
[355216980,1741019446000,-500.0,0.00014785,2]
[355216981,1741019446009,-500.0,0.00014785,2]
[355216982,1741019446019,-500.0,0.00014785,2]
[355216983,1741019446028,-500.0,0.00014785,2]
[355216984,1741019446038,-500.0,0.00014785,2]
[355216985,1741019446047,-500.0,0.00014785,2]
[355216986,1741019446056,-500.0,0.00014785,2]
[355216987,1741019446065,-500.0,0.00014785,2]
[355216988,1741019446075,-500.0,0.00014785,2]
[355216989,1741019446084,-500.0,0.00014785,2]
[355216990,1741019446094,-500.0,0.00014785,2]
[355216991,1741019446103,-500.0,0.00014785,2]
[355216992,1741019446112,-500.0,0.00014785,2]
[355216993,1741019446121,-500.0,0.00014785,2]
[355216994,1741019446131,-597.12853527,0.00014785,2]
[355216995,1741019446140,-500.0,0.00014785,2]
[355216996,1741019446152,-714.78,0.00014785,2]
[355216997,1741019446162,-500.0,0.00014785,2]
[355216998,1741019446171,-500.0,0.00014785,2]
[355216999,1741019446181,-500.0,0.00014785,2]
[355217000,1741019446190,-500.0,0.00014785,2]
[355217001,1741019446200,-500.0,0.00014785,2]
[355217002,1741019446211,-500.0,0.00014785,2]
[355217003,1741019446223,-500.0,0.00014785,2]
[355217004,1741019446233,-500.0,0.00014785,2]
[355217005,1741019446242,-500.0,0.00014785,2]
[355217006,1741019446252,-500.0,0.00014785,2]
[355217007,1741019446261,-500.0,0.00014785,2]
[355217008,1741019446271,-500.0,0.00014785,2]
[355217009,1741019446280,-817.43,0.00014785,2]
[355217010,1741019446290,-500.0,0.00014785,2]
[355217011,1741019446300,-500.0,0.00014785,2]
[355217012,1741019446310,-500.0,0.00014785,2]
[355217013,1741019446320,-500.0,0.00014785,2]
[355217014,1741019446330,-500.0,0.00014785,2]
[355217015,1741019446339,-896.23,0.00014785,2]
[355217016,1741019446349,-500.0,0.00014785,2]
[355217017,1741019446358,-500.0,0.00014785,2]
[355217018,1741019446368,-500.0,0.00014785,2]
[355217019,1741019446379,-500.0,0.00014785,2]
[355217020,1741019446388,-500.0,0.00014785,2]
[355217021,1741019446397,-500.0,0.00014785,2]
[355217022,1741019446409,-500.0,0.00014785,2]
[355217023,1741019446418,-500.0,0.00014785,2]
[355217024,1741019446428,-500.0,0.00014785,2]
[355217025,1741019446438,-500.0,0.00014785,2]
[355217026,1741019446448,-500.0,0.00014785,2]
[355217027,1741019446458,-500.0,0.00014785,2]
[355217028,1741019446468,-500.0,0.00014785,2]
[355217029,1741019446477,-500.0,0.00014785,2]
[355217030,1741019446488,-331.03930702,0.00014785,2]
[355217031,1741019446498,-500.0,0.00014785,2]
[355217032,1741019446507,-500.0,0.00014785,2]
[355217033,1741019446517,-777.47,0.00014785,2]
[355217034,1741019446526,-500.0,0.00014785,2]
[355217035,1741019446535,-500.0,0.00014785,2]
[355217036,1741019446545,-500.0,0.00014785,2]
[355217037,1741019446555,-496.0,0.00014785,2]
[355217038,1741019446565,-500.0,0.00014785,2]
[355217039,1741019446574,-500.0,0.00014785,2]
[355217040,1741019446583,-500.0,0.00014785,2]
[355217041,1741019446593,-500.0,0.00014785,2]
[355217042,1741019446602,-558.30314924,0.00014785,2]
[355217043,1741019446612,-500.0,0.00014785,2]
[355217044,1741019446621,-500.0,0.00014785,2]
[355217045,1741019446631,-500.0,0.00014785,2]
[355217046,1741019446640,-500.0,0.00014785,2]
[355217047,1741019446650,-500.0,0.00014785,2]
[355217048,1741019446660,-500.0,0.00014785,2]
[355217049,1741019446669,-509.26,0.00014785,2]
[355217050,1741019446679,-500.0,0.00014785,2]
[355217051,1741019446689,-500.0,0.00014785,2]
[355217052,1741019446698,-500.0,0.00014785,2]
[355217053,1741019446708,-500.0,0.00014785,2]
[355217054,1741019446720,-500.0,0.00014785,2]
[355217055,1741019446731,-500.0,0.00014785,2]
[355217056,1741019446740,-500.0,0.00014785,2]
[355217057,1741019446749,-500.0,0.00014785,2]
[355217058,1741019446759,-500.0,0.00014785,2]
[355217059,1741019446769,-500.0,0.00014785,2]
[355217060,1741019446779,-567.93,0.00014785,2]
[355217061,1741019446788,-500.0,0.00014785,2]
[355217062,1741019446798,-500.0,0.00014785,2]
[355217063,1741019446808,-500.0,0.00014785,2]
[355217064,1741019446817,-500.0,0.00014785,2]
[355217065,1741019446826,-500.0,0.00014785,2]
[355217066,1741019446836,-500.0,0.00014785,2]
[355217067,1741019446845,-500.0,0.00014785,2]
[355217068,1741019446855,-500.0,0.00014785,2]
[355217069,1741019446864,-472.27214321,0.00014785,2]
[355217070,1741019446874,-500.0,0.00014785,2]
[355217071,1741019446883,-500.0,0.00014785,2]
[355217072,1741019446893,-500.0,0.00014785,2]
[355217073,1741019446903,-500.0,0.00014785,2]
[355217074,1741019446912,-500.0,0.00014785,2]
[355217075,1741019446922,-500.0,0.00014785,2]
[355217076,1741019446932,-500.0,0.00014785,2]
[355217077,1741019446941,-500.0,0.00014785,2]
[355217078,1741019446951,-500.0,0.00014785,2]
[355217079,1741019446961,-500.0,0.00014785,2]
[355217080,1741019446971,-500.0,0.00014785,2]
[355217081,1741019446981,-500.0,0.00014785,2]
[355217082,1741019446991,-500.0,0.00014785,2]
[355217083,1741019447000,-500.0,0.00014785,2]
[355217084,1741019447010,-500.0,0.00014785,2]
[355217085,1741019447020,-500.0,0.00014785,2]
[355217086,1741019447029,-500.0,0.00014785,2]
[355217087,1741019447040,-500.0,0.00014785,2]
[355217088,1741019447049,-500.0,0.00014785,2]
[355217089,1741019447059,-500.0,0.00014785,2]
[355217090,1741019447070,-500.0,0.00014785,2]
[355217091,1741019447080,-500.0,0.00014785,2]
[355217092,1741019447090,-500.0,0.00014785,2]
[355217093,1741019447099,-500.0,0.00014785,2]
[355217094,1741019447109,-507.14211847,0.00014785,2]
[355217095,1741019447119,-500.0,0.00014785,2]
[355217096,1741019447128,-500.0,0.00014785,2]
[355217097,1741019447137,-500.0,0.00014785,2]
[355217098,1741019447147,-635.46,0.00014785,2]
[355217099,1741019447160,-500.0,0.00014785,2]
[355217100,1741019447170,-500.0,0.00014785,2]
[355217101,1741019447180,-500.0,0.00014785,2]
[355217102,1741019447189,-500.0,0.00014785,2]
[355217103,1741019447200,-500.0,0.00014785,2]
[355217104,1741019447209,-500.0,0.00014785,2]
[355217105,1741019447219,-500.0,0.00014785,2]
[355217106,1741019447229,-500.0,0.00014785,2]
[355217107,1741019447239,-722.7,0.00014785,2]
[355217108,1741019447249,-500.0,0.00014785,2]
[355217109,1741019447259,-559.17,0.00014785,2]
[355217110,1741019447269,-500.0,0.00014785,2]
[355217111,1741019447278,-500.0,0.00014785,2]
[355217112,1741019447288,-500.0,0.00014785,2]
[355217113,1741019447297,-500.0,0.00014785,2]
[355217114,1741019447307,-500.0,0.00014785,2]
[355217115,1741019447316,-500.0,0.00014785,2]
[355217116,1741019447325,-500.0,0.00014785,2]
[355217117,1741019447335,-500.0,0.00014785,2]
[355217118,1741019447344,-500.0,0.00014785,2]
[355217119,1741019447354,-500.0,0.00014785,2]
[355217120,1741019447364,-500.0,0.00014785,2]
[355217121,1741019447373,-500.0,0.00014785,2]
[355217122,1741019447383,-500.0,0.00014785,2]
[355217123,1741019447393,-500.0,0.00014785,2]
[355217124,1741019447405,-567.07016017,0.00014785,2]
[355217125,1741019447415,-500.0,0.00014785,2]
[355217126,1741019447424,-500.0,0.00014785,2]
[355217127,1741019447434,-500.0,0.00014785,2]
[355217128,1741019447444,-500.0,0.00014785,2]
[355217129,1741019447453,-500.0,0.00014785,2]
[355217130,1741019447463,-619.61,0.00014785,2]
[355217131,1741019447473,-853.1,0.00014785,2]
[355217132,1741019447483,-500.0,0.00014785,2]
[355217133,1741019447493,-500.0,0.00014785,2]
[355217134,1741019447503,-500.0,0.00014785,2]
[355217135,1741019447513,-500.0,0.00014785,2]
[355217136,1741019447522,-300.09939697,0.00014785,2]
[355217137,1741019447532,-500.0,0.00014785,2]
[355217138,1741019447541,-793.88,0.00014785,2]
[355217139,1741019447551,-500.0,0.00014785,2]
[355217140,1741019447560,-500.0,0.00014785,2]
[355217141,1741019447570,-500.0,0.00014785,2]
[355217142,1741019447579,-500.0,0.00014785,2]
[355217143,1741019447590,-500.0,0.00014785,2]
[355217144,1741019447759,-500.0,0.00014785,2]
[355217145,1741019447771,-863.0,0.00014785,2]
[355217146,1741019447781,-609.23,0.00014785,2]
[355217147,1741019447790,-500.0,0.00014785,2]
[355217148,1741019447799,-500.0,0.00014785,2]
[355217149,1741019447810,-500.0,0.00014785,2]
[355217150,1741019447820,-500.0,0.00014785,2]
[355217151,1741019447829,-500.0,0.00014785,2]
[355217152,1741019447839,-500.0,0.00014785,2]
[355217153,1741019447848,-503.12175583,0.00014785,2]
[355217154,1741019447858,-500.0,0.00014785,2]
[355217155,1741019447867,-500.0,0.00014785,2]
[355217156,1741019447877,-500.0,0.00014785,2]
[355217157,1741019447887,-500.0,0.00014785,2]
[355217158,1741019447897,-500.0,0.00014785,2]
[355217159,1741019447907,-608.43,0.00014785,2]
[355217160,1741019447917,-500.0,0.00014785,2]
[355217161,1741019447927,-500.0,0.00014785,2]
[355217162,1741019447936,-817.6,0.00014785,2]
[355217163,1741019447946,-501.80013821,0.00014785,2]
[355217164,1741019447955,-508.44815269,0.00014785,2]
[355217165,1741019447965,-500.0,0.00014785,2]
[355217166,1741019447975,-500.0,0.00014785,2]
[355217167,1741019447985,-211.33777305,0.00014785,2]
[355217168,1741019447995,-500.0,0.00014785,2]
[355217169,1741019448005,-500.0,0.00014785,2]
[355217170,1741019448016,-822.33,0.00014785,2]
[355217171,1741019448025,-500.0,0.00014785,2]
[355217172,1741019448035,-500.0,0.00014785,2]
[355217173,1741019448045,-500.0,0.00014785,2]
[355217174,1741019448055,-500.0,0.00014785,2]
[355217175,1741019448065,-314.20210558,0.00014785,2]
[355217176,1741019448076,-2147.24,0.00014785,2]
[355217177,1741019448086,-500.0,0.00014785,2]
[355217178,1741019448096,-500.0,0.00014785,2]
[355217179,1741019448107,-500.0,0.00014785,2]
[355217180,1741019448117,-500.0,0.00014785,2]
[355217181,1741019448127,-500.0,0.00014785,2]
[355217182,1741019448138,-500.0,0.00014785,2]
[355217183,1741019448148,-500.0,0.00014785,2]
[355217184,1741019448160,-500.0,0.00014785,2]
[355217185,1741019448170,-500.0,0.00014785,2]
[355217186,1741019448180,-500.0,0.00014785,2]
[355217187,1741019448191,-500.0,0.00014785,2]
[355217188,1741019448202,-527.46200874,0.00014785,2]
[355217189,1741019448213,-500.0,0.00014785,2]
[355217190,1741019448224,-500.0,0.00014785,2]
[355217191,1741019448235,-500.0,0.00014785,2]
[355217192,1741019448245,-500.0,0.00014785,2]
[355217193,1741019448256,-500.0,0.00014785,2]
[355217194,1741019448267,-500.0,0.00014785,2]
[355217195,1741019448278,-476.98902816,0.00014785,2]
[355217196,1741019449368,-323.93097184,0.00014785,2]
[355217197,1741019449378,-500.0,0.00014785,2]
[355217198,1741019449388,-500.0,0.00014785,2]
[355217199,1741019449398,-500.0,0.00014785,2]
[355217200,1741019449409,-792.07,0.00014785,2]
[355217201,1741019449418,-500.0,0.00014785,2]
[355217202,1741019449428,-500.0,0.00014785,2]
[355217203,1741019449439,-500.0,0.00014785,2]
[355217204,1741019449449,-478.99902816,0.00014785,2]
[355217205,1741019449462,-21.00097184,0.00014785,2]
[355217206,1741019449471,-500.0,0.00014785,2]
[355217207,1741019449482,-500.0,0.00014785,2]
[355217208,1741019449682,-500.0,0.00014785,2]
[355217209,1741019449693,-255.94629301,0.00014785,2]
[355217210,1741019449702,-500.0,0.00014785,2]
[355217211,1741019449711,-23.05273515,0.00014785,2]
[355217212,1741019450178,-478.64854621,0.00014785,2]
[355217213,1741019450188,-89.40187379,0.00014785,2]
[355217214,1741019450199,-410.59812621,0.00014785,2]
[355217215,1741019450209,-270.4822738,0.00014785,2]
[355217216,1741019450229,-329.36820223,0.00014785,2]
[355217217,1741019450240,-466.23179777,0.00014785,2]
[355217218,1741019450252,-36.44926698,0.00014785,2]
[355217219,1741019450261,-514.23922031,0.00014785,2]
[355217220,1741019450270,-500.0,0.00014785,2]
[355217221,1741019450280,-500.0,0.00014785,2]
[355217222,1741019450289,-507.82194949,0.00014785,2]
[355217223,1741019450299,-500.0,0.00014785,2]
[355217224,1741019450309,-639.93,0.00014785,2]
[355217225,1741019450318,-500.0,0.00014785,2]
[355217226,1741019450328,-500.0,0.00014785,2]
[355217227,1741019450338,-589.65,0.00014785,2]
[355217228,1741019450347,-500.0,0.00014785,2]
[355217229,1741019450357,-489.81620759,0.00014785,2]
[355217230,1741019450367,-500.0,0.00014785,2]
[355217231,1741019450377,-500.0,0.00014785,2]
[355217232,1741019450386,-500.0,0.00014785,2]
[355217233,1741019450396,-2737.8,0.00014785,2]
[355217234,1741019450405,-500.0,0.00014785,2]
[355217235,1741019450418,-500.0,0.00014785,2]
[355217236,1741019450428,-500.0,0.00014785,2]
[355217237,1741019450437,-31024.41,0.00014785,2]
[355217238,1741019450447,-500.0,0.00014785,2]
[355217239,1741019450456,-500.0,0.00014785,2]
[355217240,1741019450466,-565.43,0.00014785,2]
[355217241,1741019450475,-500.0,0.00014785,2]
[355217242,1741019450485,-500.0,0.00014785,2]
[355217243,1741019450495,-500.0,0.00014785,2]
[355217244,1741019450505,-500.0,0.00014785,2]
[355217245,1741019450515,-500.0,0.00014785,2]
[355217246,1741019450524,-1171.22,0.00014785,2]
[355217247,1741019450534,-500.0,0.00014785,2]
[355217248,1741019450544,-500.0,0.00014785,2]
[355217249,1741019450554,-500.0,0.00014785,2]
[355217250,1741019450563,-500.0,0.00014785,2]
[355217251,1741019450573,-2100.19,0.00014785,2]
[355217252,1741019450582,-500.0,0.00014785,2]
[355217253,1741019450593,-500.0,0.00014785,2]
[355217254,1741019450602,-500.0,0.00014785,2]
[355217255,1741019450612,-500.0,0.00014785,2]
[355217256,1741019450621,-500.0,0.00014785,2]
[355217257,1741019450631,-500.0,0.00014785,2]
[355217258,1741019450643,-3614.04,0.00014785,2]
[355217259,1741019450661,-500.0,0.00014785,2]
[355217260,1741019450676,-500.0,0.00014785,2]
[355217261,1741019450695,-500.0,0.00014785,2]
[355217262,1741019450714,-500.0,0.00014785,2]
[355217263,1741019450730,-27096.09,0.00014785,2]
[355217264,1741019450745,-500.0,0.00014785,2]
[355217265,1741019450765,-500.0,0.00014785,2]
[355217266,1741019450782,-500.0,0.00014785,2]
[355217267,1741019450802,-500.0,0.00014785,2]
[355217268,1741019450819,-500.0,0.00014785,2]
[355217269,1741019450835,-462.91335563,0.00014785,2]
[355217270,1741019450890,-182.5837013,0.00014785,2]
[355217271,1741019450906,-500.0,0.00014785,2]
[355217272,1741019450922,-64.2570908,0.00014785,2]
[355217273,1741019450941,-86.7429092,0.00014785,2]
[355217274,1741019450959,-2200.2570908,0.00014785,2]
[355217275,1741019450984,-560.63623999,0.00014785,2]
[355217276,1741019470067,250.0,0.00013,2]
[355217278,1741019543899,162.32,0.00013859,2]
[355217279,1741019572214,173.79,0.00013853,2]
[355217280,1741019580890,8166.78,0.00013964,2]
[355217281,1741019582025,5400.0,0.000139,5]
[355217282,1741019584173,10900.0,0.00014,5]
[355217283,1741019586229,16400.0,0.000141,5]
[355217284,1741019588364,21900.0,0.000142,5]
[355217285,1741019590651,27300.0,0.000143,5]
[355217286,1741019592551,5400.0,0.000144,5]
[355217287,1741019594692,5400.0,0.000145,5]
[355217288,1741019738757,162.96,0.00011042,2]
[355217290,1741019846524,1000.0,0.00013793,2]
[355217291,1741019904841,250.0,0.00013792,2]
[355217292,1741019915590,881.58,0.00013792,2]
[355217293,1741019936120,159.25,0.00013792,2]
[355217294,1741019936528,159.25,0.00013909,2]
[355217295,1741019936740,159.25,0.00014025,2]
[355217296,1741019936958,159.25,0.00014142,2]
[355217297,1741019937178,159.25,0.00014259,2]
[355217298,1741019937413,159.25,0.00014376,2]
[355217299,1741019937911,159.25,0.00014492,2]
[355217300,1741020156701,2089.15,0.00013819,2]
[355217301,1741020271455,249.06,0.00013786,2]
[355217302,1741020332300,150.0,0.00013791,7]
[355217303,1741020340446,463.29,0.00013791,2]
[355217304,1741020355042,961.06,0.00011873,2]
[355217305,1741020355924,961.06,0.00014137,2]
[355217306,1741020442517,800.0,0.000139,5]
[355217307,1741020444609,1600.0,0.00014,5]
[355217308,1741020446699,2500.0,0.000141,5]
[355217309,1741020448804,3300.0,0.000142,5]
[355217310,1741020450958,4200.0,0.000143,5]
[355217311,1741020453053,800.0,0.000144,5]
[355217312,1741020455411,800.0,0.000145,5]
[355217318,1741020631816,-775.13734053,0.00014537,2]
[355217319,1741020631828,-922.88265947,0.00014537,2]
[355217320,1741020631838,-550.0,0.00014546,2]
[355217321,1741020631847,-500.0,0.00014555,2]
[355217322,1741020631857,-273.21734053,0.00014555,2]
[355217323,1741020631883,-518.94,0.00014555,2]
[355217324,1741020636428,-307.84265947,0.00014555,2]
[355217325,1741020636439,-800.0,0.000146,5]
[355217326,1741020636449,-159.25,0.00014609,2]
[355217327,1741020636459,-169.48065,0.0001464,2]
[355217328,1741020636469,-300.0,0.00014678,2]
[355217329,1741020636481,-5000.0,0.00014679,2]
[355217330,1741020636495,-158.8524,0.000147,3]
[355217331,1741020636505,-800.0,0.000147,5]
[355217332,1741020636515,-2535.0,0.00014713,2]
[355217333,1741020636525,-159.25,0.00014726,2]
[355217334,1741020636535,-263.75,0.00014768,2]
[355217335,1741020636545,-500.0,0.00014773,2]
[355217336,1741020636555,-1926.27087053,0.00014777,2]
[355217337,1741020636567,-4618.24064885,0.00014777,2]
[355217338,1741020636579,-873.69,0.00014777,2]
[355217339,1741020636607,-264.2,0.00014777,2]
[355217389,1741020637752,-1009.29611481,0.00014777,2]
[355217390,1741020637762,-150.0,0.00014777,2]
[355217391,1741020637772,-500.0,0.00014777,2]
[355217392,1741020637783,-1136.43,0.00014777,2]
[355217393,1741020637792,-843.75,0.00014777,2]
[355217394,1741020637803,-1126.19,0.00014777,2]
[355217395,1741020637813,-385.57983307,0.00014777,2]
[355217396,1741020637823,-500.0,0.00014778,2]
[355217397,1741020637834,-500.0,0.00014778,2]
[355217398,1741020637844,-955.89,0.00014778,2]
[355217399,1741020637855,-606.66,0.00014778,2]
[355217400,1741020637865,-668.83,0.00014778,2]
[355217401,1741020637875,-500.0,0.00014778,2]
[355217402,1741020637884,-500.0,0.00014778,2]
[355217403,1741020637899,-500.0,0.00014778,2]
[355217404,1741020637909,-947.75,0.00014778,2]
[355217405,1741020637919,-500.0,0.00014778,2]
[355217406,1741020637929,-79.82726822,0.00014778,2]
[355217407,1741020637951,-604.63273178,0.00014778,2]
[355217408,1741020637962,-345.18777754,0.00014778,2]
[355217409,1741020638058,-384.1090751,0.00014778,2]
[355217410,1741020638138,-322.00314736,0.00014778,2]
[355217411,1741020638148,-500.0,0.00014778,2]
[355217412,1741020638158,-395.63243257,0.00014778,2]
[355217413,1741020638174,-155.42756743,0.00014778,2]
[355217414,1741020638185,-306.51314839,0.00014778,2]
[355217415,1741020638196,-432.67355651,0.00014778,2]
[355217544,1741020640048,-282.0232951,0.00014778,2]
[355217545,1741020640058,-518.27,0.00014778,2]
[355217546,1741020640067,-500.0,0.00014778,2]
[355217547,1741020640077,-500.0,0.00014778,2]
[355217548,1741020640087,-500.0,0.00014778,2]
[355217549,1741020640097,-562.95,0.00014778,2]
[355217550,1741020640109,-500.0,0.00014778,2]
[355217551,1741020640119,-630.24,0.00014778,2]
[355217552,1741020640129,-777.63,0.00014778,2]
[355217553,1741020640139,-589.85,0.00014778,2]
[355217554,1741020640148,-500.0,0.00014778,2]
[355217555,1741020640158,-500.0,0.00014778,2]
[355217556,1741020640167,-1621.17,0.00014778,2]
[355217557,1741020640177,-1162.58,0.00014778,2]
[355217558,1741020640187,-1091.92,0.00014778,2]
[355217559,1741020640196,-500.0,0.00014778,2]
[355217560,1741020640206,-500.0,0.00014778,2]
[355217561,1741020640218,-500.0,0.00014778,2]
[355217562,1741020640227,-500.0,0.00014778,2]
[355217563,1741020640239,-500.0,0.00014778,2]
[355217564,1741020640248,-503.12175583,0.00014778,2]
[355217565,1741020640258,-500.0,0.00014778,2]
[355217566,1741020640268,-500.0,0.00014778,2]
[355217567,1741020640524,-500.0,0.00014778,2]
[355217568,1741020640535,-500.0,0.00014778,2]
[355217569,1741020640546,-500.0,0.00014778,2]
[355217570,1741020640556,-500.0,0.00014778,2]
[355217571,1741020640566,-505.26,0.00014778,2]
[355217572,1741020640575,-551.86,0.00014778,2]
[355217573,1741020640585,-550.74,0.00014778,2]
[355217574,1741020640595,-215.92650591,0.00014778,2]
[355217575,1741020640604,-2154.58,0.00014778,2]
[355217576,1741020640615,-500.0,0.00014778,2]
[355217577,1741020640624,-1077.79,0.00014778,2]
[355217578,1741020640634,-866.76,0.00014778,2]
[355217579,1741020640643,-500.0,0.00014778,2]
[355217580,1741020640652,-500.0,0.00014778,2]
[355217581,1741020640662,-1025.21,0.00014778,2]
[355217582,1741020640671,-583.89,0.00014778,2]
[355217583,1741020640680,-500.0,0.00014778,2]
[355217584,1741020640689,-1076.94,0.00014778,2]
[355217585,1741020640699,-1042.73,0.00014778,2]
[355217586,1741020640708,-500.0,0.00014778,2]
[355217587,1741020640717,-514.7,0.00014778,2]
[355217588,1741020640726,-500.0,0.00014778,2]
[355217589,1741020640735,-500.0,0.00014778,2]
[355217590,1741020640746,-1041.29,0.00014778,2]
[355217591,1741020640756,-500.0,0.00014778,2]